[Event "MČR družstev mladších žáků 2024"]
[Site "Harrachov, Czech Republic"]
[Date "2024.06.14"]
[Round "2.1"]
[White "Vancakova Veronika"]
[Black "Honcharov Makar"]
[Result "1-0"]
[TimeControl "25+10"]
[WhiteFideId "23731907"]
[BlackFideId "23746203"]
[WhiteElo "1437"]
[BlackElo "1806"]

1. d4 {[%clk 00:25:18]} {[%emt 00:00:02]} Nf6 {[%clk 00:25:06]} {[%emt
00:00:14]} 2. c4 {[%clk 00:25:27]} {[%emt 00:00:01]} g6 {[%clk 00:25:16]} 3.
Nc3 {[%clk 00:25:35]} {[%emt 00:00:02]} Bg7 {[%clk 00:25:25]} 4. e4 {[%clk
00:25:44]} {[%emt 00:00:01]} d6 {[%clk 00:25:34]} 5. Nf3 {[%clk 00:25:53]}
{[%emt 00:00:01]} O-O {[%clk 00:25:41]} {[%emt 00:00:03]} 6. Be2 {[%clk
00:26:01]} {[%emt 00:00:02]} e5 {[%clk 00:25:50]} 7. d5 {[%clk 00:24:47]}
{[%emt 00:01:24]} a5 {[%clk 00:25:58]} {[%emt 00:00:03]} 8. O-O {[%clk
00:24:54]} {[%emt 00:00:03]} Na6 {[%clk 00:26:07]} {[%emt 00:00:01]} 9. Ne1
{[%clk 00:24:13]} {[%emt 00:00:51]} Nc5 {[%clk 00:26:02]} {[%emt 00:00:15]} 10.
f3 {[%clk 00:24:20]} {[%emt 00:00:03]} Nfd7 {[%clk 00:26:01]} {[%emt 00:00:10]}
11. Be3 {[%clk 00:24:27]} {[%emt 00:00:03]} f5 {[%clk 00:26:08]} {[%emt
00:00:04]} 12. Qc2 {[%clk 00:24:07]} {[%emt 00:00:29]} f4 {[%clk 00:26:00]}
{[%emt 00:00:18]} 13. Bf2 {[%clk 00:24:14]} {[%emt 00:00:03]} b6 {[%clk
00:26:05]} {[%emt 00:00:05]} 14. Nd3 {[%clk 00:24:19]} {[%emt 00:00:05]} Nxd3
{[%clk 00:26:13]} {[%emt 00:00:02]} 15. Bxd3 {[%clk 00:24:21]} {[%emt
00:00:08]} Nf6 {[%clk 00:26:18]} {[%emt 00:00:04]} 16. a3 {[%clk 00:23:43]}
{[%emt 00:00:48]} g5 {[%clk 00:25:50]} {[%emt 00:00:38]} 17. b4 {[%clk
00:23:51]} {[%emt 00:00:02]} axb4 {[%clk 00:25:58]} {[%emt 00:00:02]} 18. axb4
{[%clk 00:24:00]} {[%emt 00:00:01]} Rxa1 {[%clk 00:26:06]} {[%emt 00:00:02]} 19.
Rxa1 {[%clk 00:24:08]} {[%emt 00:00:02]} h5 {[%clk 00:26:01]} {[%emt 00:00:14]}
20. c5 {[%clk 00:23:52]} {[%emt 00:00:27]} bxc5 {[%clk 00:25:13]} {[%emt
00:00:58]} 21. bxc5 {[%clk 00:23:57]} {[%emt 00:00:04]} Rf7 {[%clk 00:25:22]}
22. Ra8 {[%clk 00:23:12]} {[%emt 00:00:56]} Rf8 {[%clk 00:24:16]} {[%emt
00:01:16]} 23. Ba6 {[%clk 00:22:14]} {[%emt 00:01:08]} Bxa6 {[%clk 00:24:24]}
{[%emt 00:00:02]} 24. Rxd8 {[%clk 00:22:22]} {[%emt 00:00:02]} Rxd8 {[%clk
00:24:34]} 25. Qa4 {[%clk 00:21:34]} {[%emt 00:00:58]} Bd3 {[%clk 00:21:30]}
{[%emt 00:03:14]} 26. Qa7 {[%clk 00:20:03]} {[%emt 00:01:41]} Ne8 {[%clk
00:21:18]} {[%emt 00:00:21]} 27. c6 {[%clk 00:19:53]} {[%emt 00:00:21]} Bf6
{[%clk 00:20:45]} {[%emt 00:00:43]} 28. Be1 {[%clk 00:19:05]} {[%emt 00:00:57]}
g4 {[%clk 00:19:55]} {[%emt 00:01:00]} 29. Na4 {[%clk 00:17:54]} {[%emt
00:01:22]} Bb5 {[%clk 00:17:50]} {[%emt 00:02:15]} 30. Nb2 {[%clk 00:17:53]}
{[%emt 00:00:10]} Be7 {[%clk 00:12:54]} {[%emt 00:05:06]} 31. Qb7 {[%clk
00:17:33]} {[%emt 00:00:30]} Be2 {[%clk 00:10:52]} {[%emt 00:02:11]} 32. Kf2
{[%clk 00:17:41]} {[%emt 00:00:02]} gxf3 {[%clk 00:11:00]} {[%emt 00:00:02]} 33.
gxf3 {[%clk 00:17:47]} {[%emt 00:00:04]} Ba6 {[%clk 00:09:39]} {[%emt
00:01:31]} 34. Qxa6 {[%clk 00:17:50]} {[%emt 00:00:08]} Rb8 {[%clk 00:09:48]}
35. Nd3 {[%clk 00:15:34]} {[%emt 00:02:26]} Kf8 {[%clk 00:08:42]} {[%emt
00:01:16]} 36. Bb4 {[%clk 00:15:17]} {[%emt 00:00:28]} Bd8 {[%clk 00:08:22]}
{[%emt 00:00:29]} 37. Qa7 {[%clk 00:14:51]} {[%emt 00:00:37]} Rb6 {[%clk
00:07:37]} {[%emt 00:00:55]} 38. Qa8 {[%clk 00:14:29]} {[%emt 00:00:32]} Be7
{[%clk 00:07:02]} {[%emt 00:00:44]} 39. Qc8 {[%clk 00:14:13]} {[%emt 00:00:27]}
Bh4+ {[%clk 00:06:51]} {[%emt 00:00:21]} 40. Ke2 {[%clk 00:14:16]} {[%emt
00:00:08]} Be7 {[%clk 00:06:59]} {[%emt 00:00:02]} 41. Kd2 {[%clk 00:14:24]}
{[%emt 00:00:02]} Kf7 {[%clk 00:06:33]} {[%emt 00:00:35]} 42. Qe6+ {[%clk
00:14:29]} {[%emt 00:00:06]} Kf8 {[%clk 00:06:38]} {[%emt 00:00:05]} 43. Qh6+
{[%clk 00:13:18]} {[%emt 00:01:20]} Ng7 {[%clk 00:06:43]} {[%emt 00:00:06]} 44.
Qh8+ {[%clk 00:13:14]} {[%emt 00:00:14]} Kf7 {[%clk 00:06:51]} {[%emt
00:00:02]} 45. Qc8 {[%clk 00:12:56]} {[%emt 00:00:27]} Ne8 {[%clk 00:06:28]}
{[%emt 00:00:33]} 46. Kc2 {[%clk 00:12:51]} {[%emt 00:00:16]} Kf8 {[%clk
00:06:19]} {[%emt 00:00:19]} 47. Kb3 {[%clk 00:11:30]} {[%emt 00:01:31]} Rb5
{[%clk 00:05:51]} {[%emt 00:00:38]} 48. Kc4 {[%clk 00:10:28]} {[%emt 00:01:12]}
Rb6 {[%clk 00:05:58]} {[%emt 00:00:02]} 49. Nc1 {[%clk 00:10:13]} {[%emt
00:00:25]} Kf7 {[%clk 00:05:47]} {[%emt 00:00:21]} 50. Nb3 {[%clk 00:10:20]}
{[%emt 00:00:03]} Nf6 {[%clk 00:05:52]} {[%emt 00:00:05]} 51. Ba5 {[%clk
00:09:47]} {[%emt 00:00:43]} 1-0



[ePGN "0.1;DGT LiveChess/2.2.6"]

[Event "MČR družstev mladších žáků 2024"]
[Site "Harrachov, Czech Republic"]
[Date "2024.06.14"]
[Round "2.10"]
[White "Gernert Tomas"]
[Black "Malek Daniel"]
[Result "1-0"]
[TimeControl "25+10"]
[WhiteFideId "23750219"]
[BlackFideId "23742720"]
[WhiteElo "1409"]
[BlackElo "1246"]

1. e4 {[%clk 00:25:11]} {[%emt 00:00:08]} e5 {[%clk 00:25:16]} {[%emt
00:00:05]} 2. Nf3 {[%clk 00:25:19]} {[%emt 00:00:02]} Nc6 {[%clk 00:25:23]}
{[%emt 00:00:02]} 3. d4 {[%clk 00:25:28]} {[%emt 00:00:02]} exd4 {[%clk
00:25:27]} {[%emt 00:00:06]} 4. Bc4 {[%clk 00:25:36]} {[%emt 00:00:02]} Bc5
{[%clk 00:23:28]} {[%emt 00:02:09]} 5. c3 {[%clk 00:25:42]} {[%emt 00:00:05]}
d6 {[%clk 00:21:23]} {[%emt 00:02:14]} 6. cxd4 {[%clk 00:25:23]} {[%emt
00:00:27]} Bb6 {[%clk 00:21:08]} {[%emt 00:00:26]} 7. O-O {[%clk 00:24:31]}
{[%emt 00:01:01]} Qf6 {[%clk 00:18:28]} {[%emt 00:02:53]} 8. e5 {[%clk
00:23:42]} {[%emt 00:00:59]} dxe5 {[%clk 00:17:01]} {[%emt 00:01:36]} 9. dxe5
{[%clk 00:23:37]} {[%emt 00:00:14]} Qg6 {[%clk 00:16:55]} {[%emt 00:00:16]} 10.
Ng5 {[%clk 00:20:51]} {[%emt 00:02:57]} Be6 {[%clk 00:15:21]} {[%emt 00:01:45]}
11. Bd3 {[%clk 00:18:02]} {[%emt 00:02:59]} Bf5 {[%clk 00:14:33]} {[%emt
00:00:58]} 12. Bxf5 {[%clk 00:15:41]} {[%emt 00:02:31]} Qxf5 {[%clk 00:14:35]}
{[%emt 00:00:08]} 13. e6 {[%clk 00:15:43]} {[%emt 00:00:08]} f6 {[%clk
00:11:19]} {[%emt 00:03:24]} 14. Qd7+ {[%emt 00:00:28]} 1-0



[ePGN "0.1;DGT LiveChess/2.2.6"]

[Event "MČR družstev mladších žáků 2024"]
[Site "Harrachov, Czech Republic"]
[Date "2024.06.14"]
[Round "2.11"]
[White "Junova Alexandra"]
[Black "Kusova Nikola"]
[Result "0-1"]
[TimeControl "25+10"]
[WhiteFideId "23754990"]
[BlackFideId "23733705"]
[WhiteElo "1105"]
[BlackElo "1353"]

1. e4 {[%clk 00:25:14]} {[%emt 00:00:04]} c5 {[%clk 00:25:17]} {[%emt
00:00:04]} 2. Nf3 {[%clk 00:25:22]} {[%emt 00:00:03]} Nc6 {[%clk 00:25:25]}
{[%emt 00:00:02]} 3. Bb5 {[%clk 00:25:27]} {[%emt 00:00:05]} e6 {[%clk
00:25:24]} {[%emt 00:00:11]} 4. O-O {[%clk 00:25:26]} {[%emt 00:00:10]} Nge7
{[%clk 00:25:29]} {[%emt 00:00:05]} 5. Nc3 {[%clk 00:25:18]} {[%emt 00:00:18]}
a6 {[%clk 00:25:24]} {[%emt 00:00:15]} 6. Bxc6 {[%clk 00:25:09]} {[%emt
00:00:19]} Nxc6 {[%clk 00:25:32]} {[%emt 00:00:02]} 7. d3 {[%clk 00:25:17]}
{[%emt 00:00:02]} d5 {[%clk 00:25:18]} {[%emt 00:00:25]} 8. exd5 {[%clk
00:25:13]} {[%emt 00:00:14]} exd5 {[%clk 00:25:26]} {[%emt 00:00:02]} 9. Re1+
{[%clk 00:25:20]} {[%emt 00:00:02]} Be7 {[%clk 00:25:34]} {[%emt 00:00:02]} 10.
Bg5 {[%clk 00:25:27]} {[%emt 00:00:04]} Be6 {[%clk 00:25:36]} {[%emt 00:00:07]}
11. h3 {[%clk 00:25:03]} {[%emt 00:00:34]} Bxg5 {[%clk 00:25:41]} {[%emt
00:00:06]} 12. Nxg5 {[%clk 00:25:11]} {[%emt 00:00:02]} Qxg5 {[%clk 00:25:48]}
{[%emt 00:00:03]} 13. Ne2 {[%clk 00:21:40]} {[%emt 00:03:40]} O-O {[%clk
00:25:42]} {[%emt 00:00:15]} 14. Ng3 {[%clk 00:21:42]} {[%emt 00:00:08]} Rae8
{[%clk 00:24:46]} {[%emt 00:01:06]} 15. c3 {[%clk 00:21:02]} {[%emt 00:00:51]}
d4 {[%clk 00:23:56]} {[%emt 00:01:00]} 16. c4 {[%clk 00:21:10]} {[%emt
00:00:02]} Qg6 {[%clk 00:23:26]} {[%emt 00:00:40]} 17. a3 {[%clk 00:19:03]}
{[%emt 00:02:18]} f5 {[%clk 00:23:09]} {[%emt 00:00:26]} 18. Nh5 {[%clk
00:18:02]} {[%emt 00:01:11]} f4 {[%clk 00:22:50]} {[%emt 00:00:29]} 19. Re4
{[%clk 00:16:46]} {[%emt 00:01:26]} Bxh3 {[%clk 00:22:38]} {[%emt 00:00:22]} 20.
g3 {[%clk 00:16:32]} {[%emt 00:00:25]} Rxe4 {[%clk 00:22:04]} {[%emt 00:00:44]}
21. dxe4 {[%clk 00:16:19]} {[%emt 00:00:24]} Bg4 {[%clk 00:22:09]} {[%emt
00:00:04]} 22. f3 {[%clk 00:16:12]} {[%emt 00:00:18]} Bxh5 {[%clk 00:22:13]}
{[%emt 00:00:05]} 23. g4 {[%clk 00:16:20]} {[%emt 00:00:02]} Ne5 {[%clk
00:22:14]} {[%emt 00:00:09]} 24. Kf1 {[%clk 00:15:51]} {[%emt 00:00:40]} Bxg4
{[%clk 00:22:12]} {[%emt 00:00:12]} 25. fxg4 {[%clk 00:15:59]} {[%emt
00:00:02]} Nxg4 {[%clk 00:22:20]} {[%emt 00:00:03]} 26. Qd3 {[%clk 00:15:11]}
{[%emt 00:00:56]} Ne3+ {[%clk 00:22:13]} {[%emt 00:00:16]} 27. Ke1 {[%clk
00:15:19]} {[%emt 00:00:03]} Qg1+ {[%clk 00:22:17]} {[%emt 00:00:06]} 28. Kd2
{[%clk 00:15:27]} {[%emt 00:00:02]} Qxa1 {[%clk 00:22:17]} {[%emt 00:00:09]} 29.
b3 {[%clk 00:14:38]} {[%emt 00:01:00]} Qd1# {[%clk 00:22:20]} {[%emt 00:00:06]}
0-1



[ePGN "0.1;DGT LiveChess/2.2.6"]

[Event "MČR družstev mladších žáků 2024"]
[Site "Harrachov, Czech Republic"]
[Date "2024.06.14"]
[Round "2.12"]
[White "Soukup Erik"]
[Black "Tehan Albert"]
[Result "1-0"]
[TimeControl "25+10"]
[WhiteFideId "23741910"]
[BlackFideId "23762616"]
[WhiteElo "1149"]
[BlackElo "1037"]

1. d4 {[%clk 00:25:18]} {[%emt 00:00:01]} d5 {[%clk 00:25:19]} {[%emt
00:00:01]} 2. Nf3 {[%clk 00:25:25]} {[%emt 00:00:02]} Nc6 {[%clk 00:25:26]}
{[%emt 00:00:04]} 3. Bf4 {[%clk 00:25:33]} {[%emt 00:00:02]} Bg4 {[%clk
00:25:35]} {[%emt 00:00:01]} 4. e3 {[%clk 00:25:40]} {[%emt 00:00:03]} Qd7
{[%clk 00:25:40]} {[%emt 00:00:05]} 5. Bb5 {[%clk 00:25:32]} {[%emt 00:00:18]}
O-O-O {[%clk 00:25:44]} {[%emt 00:00:07]} 6. Nc3 {[%clk 00:25:35]} {[%emt
00:00:06]} Nf6 {[%clk 00:25:51]} {[%emt 00:00:04]} 7. h3 {[%clk 00:25:23]}
{[%emt 00:00:22]} Bh5 {[%clk 00:26:00]} {[%emt 00:00:01]} 8. Qe2 {[%clk
00:24:41]} {[%emt 00:00:51]} Kb8 {[%clk 00:25:44]} {[%emt 00:00:26]} 9. O-O-O
{[%clk 00:24:29]} {[%emt 00:00:23]} Ne4 {[%clk 00:25:51]} {[%emt 00:00:02]} 10.
Rd3 {[%clk 00:23:34]} {[%emt 00:01:05]} e6 {[%clk 00:25:01]} {[%emt 00:01:00]}
11. g4 {[%clk 00:23:29]} {[%emt 00:00:15]} Bg6 {[%clk 00:25:07]} {[%emt
00:00:02]} 12. Ne5 {[%clk 00:23:37]} {[%emt 00:00:05]} Qc8 {[%clk 00:24:08]}
{[%emt 00:01:02]} 13. Nxg6 {[%clk 00:22:02]} {[%emt 00:01:51]} fxg6 {[%clk
00:23:42]} {[%emt 00:00:37]} 14. Bxc6 {[%clk 00:21:55]} {[%emt 00:00:16]} bxc6
{[%clk 00:23:50]} {[%emt 00:00:01]} 15. Nxe4 {[%clk 00:22:03]} {[%emt
00:00:03]} dxe4 {[%clk 00:23:57]} {[%emt 00:00:03]} 16. Rb3+ {[%clk 00:22:10]}
{[%emt 00:00:03]} Ka8 {[%clk 00:24:03]} {[%emt 00:00:05]} 17. f3 {[%emt
00:00:23]} exf3 {[%clk 00:24:00]} 18. Qxf3 {[%clk 00:22:17]} {[%emt 00:00:02]}
Qd7 {[%clk 00:24:05]} {[%emt 00:00:05]} 19. Rd1 {[%clk 00:21:24]} {[%emt
00:01:03]} Qd5 {[%clk 00:23:44]} {[%emt 00:00:31]} 20. Qg3 {[%clk 00:21:16]}
{[%emt 00:00:18]} Bd6 {[%clk 00:23:44]} {[%emt 00:00:09]} 21. Bxd6 {[%clk
00:20:50]} {[%emt 00:00:36]} Qxd6 {[%clk 00:23:25]} {[%emt 00:00:30]} 22. Qxd6
{[%clk 00:20:51]} {[%emt 00:00:09]} cxd6 {[%emt 00:00:03]} 23. Rdd3 {[%emt
00:00:02]} Rb8 {[%clk 00:23:17]} {[%emt 00:00:13]} 24. Kd2 {[%clk 00:20:50]}
{[%emt 00:00:12]} Rxb3 {[%clk 00:23:23]} {[%emt 00:00:04]} 25. Rxb3 {[%clk
00:20:59]} {[%emt 00:00:01]} d5 {[%clk 00:23:27]} {[%emt 00:00:05]} 26. Kd3
{[%clk 00:21:02]} {[%emt 00:00:06]} Rb8 {[%clk 00:23:35]} {[%emt 00:00:03]} 27.
e4 {[%clk 00:21:05]} {[%emt 00:00:07]} Rxb3+ {[%clk 00:23:44]} 28. axb3 {[%clk
00:21:14]} {[%emt 00:00:01]} dxe4+ {[%clk 00:23:52]} 29. Kxe4 {[%clk 00:21:22]}
{[%emt 00:00:02]} Kb7 {[%clk 00:24:01]} {[%emt 00:00:01]} 30. Ke5 {[%clk
00:21:31]} Kc7 {[%clk 00:24:07]} {[%emt 00:00:04]} 31. Kxe6 {[%clk 00:21:39]}
{[%emt 00:00:02]} h5 {[%clk 00:24:14]} {[%emt 00:00:03]} 32. gxh5 {[%clk
00:21:45]} {[%emt 00:00:04]} gxh5 {[%clk 00:24:23]} {[%emt 00:00:01]} 33. Kf5
{[%clk 00:21:51]} {[%emt 00:00:03]} Kd6 {[%clk 00:24:31]} {[%emt 00:00:02]} 34.
c4 {[%clk 00:21:55]} {[%emt 00:00:06]} a5 {[%clk 00:24:35]} {[%emt 00:00:06]}
35. Kg6 {[%clk 00:22:02]} {[%emt 00:00:04]} h4 {[%clk 00:24:44]} {[%emt
00:00:01]} 36. Kxg7 {[%clk 00:22:09]} {[%emt 00:00:02]} Ke6 {[%clk 00:24:52]}
{[%emt 00:00:01]} 37. Kg6 {[%clk 00:22:19]} Kd6 {[%clk 00:25:00]} {[%emt
00:00:03]} 38. Kg5 {[%clk 00:22:27]} {[%emt 00:00:02]} c5 {[%clk 00:25:09]} 39.
d5 {[%clk 00:22:33]} {[%emt 00:00:03]} Ke5 {[%clk 00:25:16]} {[%emt 00:00:03]}
40. Kxh4 {[%clk 00:22:42]} {[%emt 00:00:01]} Kd4 {[%clk 00:25:26]} 41. Kg5
{[%clk 00:22:51]} {[%emt 00:00:01]} Ke5 {[%clk 00:25:28]} {[%emt 00:00:08]} 42.
h4 {[%clk 00:22:59]} {[%emt 00:00:02]} Ke4 {[%clk 00:25:35]} {[%emt 00:00:02]}
43. h5 {[%clk 00:23:08]} {[%emt 00:00:01]} Kd3 {[%clk 00:25:44]} 44. h6 {[%clk
00:23:17]} {[%emt 00:00:01]} Kc2 {[%clk 00:25:53]} {[%emt 00:00:01]} 45. h7
{[%clk 00:23:26]} {[%emt 00:00:01]} Kxb2 {[%clk 00:26:01]} {[%emt 00:00:01]} 46.
h8=Q+ {[%clk 00:23:34]} {[%emt 00:00:02]} Kxb3 {[%clk 00:26:10]} {[%emt
00:00:03]} 47. Qa1 {[%clk 00:23:30]} {[%emt 00:00:13]} a4 {[%clk 00:26:15]}
{[%emt 00:00:05]} 48. Kf4 {[%clk 00:23:39]} Kxc4 {[%clk 00:26:22]} {[%emt
00:00:03]} 49. d6 {[%clk 00:23:48]} {[%emt 00:00:01]} Kb4 {[%clk 00:26:30]}
{[%emt 00:00:02]} 50. d7 {[%clk 00:23:56]} {[%emt 00:00:02]} a3 {[%clk
00:26:40]} 51. d8=R {[%clk 00:24:00]} {[%emt 00:00:04]} Kb3 {[%clk 00:26:47]}
{[%emt 00:00:05]} 1-0



[ePGN "0.1;DGT LiveChess/2.2.6"]

[Event "MČR družstev mladších žáků 2024"]
[Site "Harrachov, Czech Republic"]
[Date "2024.06.14"]
[Round "2.13"]
[White "Policar Martin"]
[Black "Frantsev Iegor"]
[Result "1-0"]
[TimeControl "25+10"]
[WhiteFideId "23734868"]
[BlackFideId "23736305"]
[WhiteElo "1646"]
[BlackElo "1413"]

1. d4 {[%clk 00:25:18]} {[%emt 00:00:01]} d5 {[%clk 00:25:17]} {[%emt
00:00:03]} 2. c4 {[%clk 00:25:25]} {[%emt 00:00:03]} c6 {[%clk 00:25:23]}
{[%emt 00:00:04]} 3. g3 {[%clk 00:25:27]} {[%emt 00:00:09]} Nf6 {[%clk
00:25:30]} {[%emt 00:00:03]} 4. Bg2 {[%clk 00:25:35]} {[%emt 00:00:02]} e6
{[%clk 00:25:11]} {[%emt 00:00:29]} 5. Nf3 {[%clk 00:25:40]} {[%emt 00:00:05]}
Bd6 {[%clk 00:25:15]} {[%emt 00:00:05]} 6. O-O {[%clk 00:25:46]} {[%emt
00:00:04]} O-O {[%clk 00:25:20]} {[%emt 00:00:04]} 7. Nc3 {[%clk 00:25:54]}
{[%emt 00:00:03]} Nbd7 {[%clk 00:25:12]} {[%emt 00:00:18]} 8. Nd2 {[%clk
00:26:01]} {[%emt 00:00:04]} Qe7 {[%clk 00:24:26]} {[%emt 00:00:55]} 9. e4
{[%clk 00:26:07]} {[%emt 00:00:05]} dxe4 {[%clk 00:24:22]} {[%emt 00:00:14]} 10.
Ndxe4 {[%clk 00:26:14]} {[%emt 00:00:03]} Nxe4 {[%clk 00:24:16]} {[%emt
00:00:16]} 11. Nxe4 {[%clk 00:26:18]} {[%emt 00:00:06]} Rd8 {[%clk 00:22:40]}
{[%emt 00:01:45]} 12. Re1 {[%clk 00:25:50]} {[%emt 00:00:38]} Bb4 {[%clk
00:22:33]} {[%emt 00:00:17]} 13. Bd2 {[%clk 00:25:39]} {[%emt 00:00:21]} Bxd2
{[%clk 00:22:37]} {[%emt 00:00:06]} 14. Qxd2 {[%clk 00:25:46]} {[%emt
00:00:04]} Nb6 {[%clk 00:20:59]} {[%emt 00:01:48]} 15. c5 {[%clk 00:25:35]}
{[%emt 00:00:21]} Nd5 {[%clk 00:20:51]} {[%emt 00:00:17]} 16. Nd6 {[%clk
00:25:43]} {[%emt 00:00:04]} b6 {[%clk 00:19:10]} {[%emt 00:01:51]} 17. Bxd5
{[%clk 00:25:09]} {[%emt 00:00:44]} cxd5 {[%clk 00:19:06]} {[%emt 00:00:14]} 18.
b4 {[%clk 00:25:13]} {[%emt 00:00:06]} bxc5 {[%clk 00:17:48]} {[%emt 00:01:28]}
19. dxc5 {[%clk 00:23:03]} {[%emt 00:02:21]} Rb8 {[%clk 00:15:24]} {[%emt
00:02:32]} 20. a3 {[%clk 00:19:55]} {[%emt 00:03:20]} Rxd6 {[%clk 00:14:45]}
{[%emt 00:00:49]} 21. cxd6 {[%clk 00:19:17]} {[%emt 00:00:47]} Qxd6 {[%clk
00:14:53]} {[%emt 00:00:02]} 22. Qd4 {[%clk 00:19:07]} {[%emt 00:00:20]} Rb6
{[%clk 00:13:06]} {[%emt 00:01:57]} 23. Rac1 {[%clk 00:18:55]} {[%emt
00:00:21]} Ba6 {[%clk 00:13:12]} {[%emt 00:00:05]} 24. Qc5 {[%clk 00:18:54]}
{[%emt 00:00:11]} Bc4 {[%clk 00:11:52]} {[%emt 00:01:30]} 25. Red1 {[%clk
00:18:21]} {[%emt 00:00:43]} Qc6 {[%clk 00:10:45]} {[%emt 00:01:16]} 26. Rxc4
{[%clk 00:18:09]} {[%emt 00:00:22]} Qxc5 {[%clk 00:09:38]} {[%emt 00:01:17]} 27.
Rxc5 {[%clk 00:17:53]} {[%emt 00:00:26]} Kf8 {[%clk 00:09:46]} {[%emt
00:00:03]} 28. Rc8+ {[%clk 00:17:57]} {[%emt 00:00:05]} Ke7 {[%clk 00:09:54]}
{[%emt 00:00:02]} 29. Rc7+ {[%clk 00:18:06]} {[%emt 00:00:03]} 1-0



[ePGN "0.1;DGT LiveChess/2.2.6"]